bitfinex/quotes_BTCUSD_20251021
["timestamp","ask_amount","ask_price","bid_price","bid_amount"]
[1761060518902,0.02419443,113230.0,113220.0,1.10187481]
[1761060519319,0.02419443,113230.0,113220.0,1.10087481]
[1761060519456,0.02419443,113230.0,113220.0,0.95970531]
[1761060519855,0.02419443,113230.0,113220.0,0.96070531]
[1761060520478,0.02419443,113230.0,113220.0,0.84354531]
[1761060520728,0.02419443,113230.0,113220.0,0.95966531]
[1761060520956,0.02419443,113230.0,113220.0,0.96066531]
[1761060521576,0.02419443,113230.0,113220.0,0.41693274]
[1761060521789,0.02419443,113230.0,113220.0,0.96062531]
[1761060522016,0.02419443,113230.0,113220.0,0.84454531]
[1761060522241,0.02419443,113230.0,113220.0,0.32707373]
[1761060522886,0.02419443,113230.0,113220.0,0.21099373]
[1761060523099,0.02419443,113230.0,113220.0,0.8708063]
[1761060523524,0.02419443,113230.0,113220.0,0.32707373]
[1761060523945,0.02419443,113230.0,113220.0,0.8708063]
[1761060524387,0.02419443,113230.0,113220.0,1.18454531]
[1761060524615,0.02419443,113230.0,113220.0,1.30062531]
[1761060524830,0.02419443,113230.0,113220.0,0.96062531]
[1761060525331,0.02419443,113230.0,113220.0,0.84454531]
[1761060525742,0.02419443,113230.0,113220.0,0.96062531]
[1761060525973,0.02419443,113230.0,113220.0,0.95162532]
[1761060526198,0.02419443,113230.0,113220.0,0.30081274]
[1761060526410,0.02419443,113230.0,113220.0,0.94505393]
[1761060526623,0.02419443,113230.0,113220.0,0.9450533]
[1761060527081,0.02419443,113230.0,113220.0,0.9372788]
[1761060527274,0.02419443,113230.0,113220.0,0.96060114]
[1761060527475,0.02419443,113230.0,113220.0,0.952827]
[1761060527913,0.02419443,113230.0,113220.0,0.9372788]
[1761060528779,0.02419443,113230.0,113220.0,0.96060531]
[1761060530037,0.02419443,113230.0,113220.0,0.41683274]
[1761060530281,0.02419443,113230.0,113220.0,0.96056531]
[1761060530476,0.02419443,113230.0,113220.0,0.21097373]
[1761060530768,0.02419443,113230.0,113220.0,0.31146258]
[1761060531014,0.02419443,113230.0,113220.0,0.32701373]
[1761060531209,0.02419443,113230.0,113220.0,0.8707463]
[1761060531912,0.20082606,113230.0,113220.0,0.8707463]
[1761060532285,0.17667844,113200.0,113190.0,0.00012905]
[1761060532470,0.16058224,113230.0,113190.0,0.00012905]
[1761060532685,0.02188554,113230.0,113210.0,0.72039297]
[1761060532930,0.02188554,113230.0,113220.0,0.00012]
[1761060533140,0.17664937,113220.0,113200.0,0.19223004]
[1761060533352,0.19851717,113230.0,113210.0,0.29302283]
[1761060533600,0.02188554,113230.0,113220.0,0.17664723]
[1761060534851,0.02188554,113230.0,113220.0,0.19431195]
[1761060535720,0.02162354,113230.0,113220.0,0.19431195]
[1761060536151,0.02162354,113230.0,113220.0,0.19531195]
[1761060536586,0.19825517,113230.0,113220.0,0.01866472]
[1761060536800,0.19825517,113230.0,113220.0,0.17864723]
[1761060537613,0.19825517,113230.0,113220.0,0.17664723]
[1761060537823,0.02162354,113230.0,113220.0,0.17664723]
[1761060538284,0.02393243,113230.0,113220.0,0.17664723]
[1761060538927,0.20056406,113230.0,113220.0,0.17664723]
[1761060539174,0.02393243,113230.0,113220.0,1.16786353]
[1761060539395,0.02393243,113230.0,113220.0,1.26655881]
[1761060539867,0.02393243,113230.0,113220.0,0.92655881]
[1761060540190,0.02393243,113230.0,113220.0,0.38382624]
[1761060540393,0.02393243,113230.0,113220.0,0.92855881]
[1761060540737,0.02393243,113230.0,113220.0,1.26751881]
[1761060540893,0.02393243,113230.0,113220.0,1.26951881]
[1761060541755,1e-08,113240.0,113230.0,0.17663163]
[1761060541968,1e-08,113240.0,113230.0,1.15018321]
[1761060542995,0.00048793,113240.0,113230.0,1.15218321]
[1761060543721,0.00048793,113240.0,113230.0,1.26846321]
[1761060543930,0.00048793,113240.0,113230.0,1.1786042]
[1761060544162,0.00048793,113240.0,113230.0,1.27621434]
[1761060544365,1e-08,113250.0,113240.0,0.17661603]
[1761060544562,1e-08,113250.0,113240.0,0.83574939]
[1761060544763,1e-08,113250.0,113240.0,0.81808779]
[1761060545122,0.0500992,113260.0,113240.0,0.85427007]
[1761060545329,0.06250301,113270.0,113260.0,1.06031741]
[1761060545560,0.05,113280.0,113270.0,0.51656925]
[1761060545758,0.05,113280.0,113270.0,1.81800453]
[1761060545958,0.05,113280.0,113270.0,1.27427196]
[1761060546183,0.05,113280.0,113270.0,1.15791196]
[1761060546513,0.05,113280.0,113270.0,1.31045424]
[1761060546737,0.05,113280.0,113270.0,1.85418681]
[1761060546879,0.05,113280.0,113270.0,1.27427196]
[1761060547080,0.05,113280.0,113270.0,1.27523196]
[1761060547513,0.05,113280.0,113270.0,1.27723196]
[1761060547723,0.05,113280.0,113270.0,1.27623196]
[1761060548169,0.06053174,113290.0,113280.0,0.51655367]
[1761060548379,0.06053174,113290.0,113280.0,1.15789638]
[1761060549002,0.06053174,113290.0,113280.0,1.70162895]
[1761060549211,0.06053174,113290.0,113280.0,0.61416381]
[1761060549441,0.06053174,113290.0,113280.0,1.701758]
[1761060549913,0.06053174,113290.0,113280.0,1.704758]
[1761060550116,0.05218,113300.0,113290.0,0.51653808]
[1761060550321,1e-08,113300.0,113290.0,1.27424079]
[1761060550860,1e-08,113300.0,113290.0,1.32042306]
[1761060551313,1e-08,113310.0,113300.0,0.72910544]
[1761060551514,1e-08,113310.0,113300.0,0.4255253]
[1761060551706,1e-08,113310.0,113300.0,0.96925787]
[1761060551865,1e-08,113310.0,113300.0,1.30925787]
[1761060552067,1e-08,113310.0,113300.0,1.32925785]
[1761060552721,1e-08,113310.0,113300.0,1.15871559]
[1761060553244,0.00263606,113310.0,113300.0,1.27515559]
[1761060553417,0.00263606,113310.0,113300.0,1.27715559]
[1761060553997,0.00263606,113310.0,113300.0,1.27515559]
[1761060554725,0.00263606,113310.0,113300.0,1.15871559]
[1761060554924,0.00263606,113310.0,113300.0,1.27319559]
[1761060555184,0.00263606,113310.0,113300.0,1.15671559]
[1761060555388,0.00263606,113310.0,113300.0,1.15871559]
[1761060555590,0.00263606,113310.0,113300.0,1.27527559]
[1761060555792,0.00263606,113310.0,113300.0,1.27427559]
[1761060555942,0.00263606,113310.0,113300.0,1.27327559]
[1761060556152,0.00263606,113310.0,113300.0,1.15871559]
[1761060556373,0.00263606,113310.0,113300.0,1.27727559]
[1761060557339,0.06055139,113320.0,113310.0,1.06023949]
[1761060557543,0.06055139,113320.0,113310.0,1.15784963]
[1761060557932,0.06055139,113320.0,113310.0,1.15779268]
[1761060558608,0.06055139,113320.0,113310.0,1.15979268]
[1761060558845,0.06055139,113320.0,113310.0,1.27631268]
[1761060559200,0.06055139,113320.0,113310.0,1.27731268]
[1761060559820,0.06055139,113320.0,113310.0,1.16079268]
[1761060560141,0.06055139,113320.0,113310.0,1.27731268]
[1761060561854,0.06055139,113320.0,113310.0,1.10080576]
[1761060562057,0.06055139,113320.0,113310.0,0.84749367]
[1761060562893,0.23704274,113320.0,113310.0,0.84749367]
[1761060563072,0.2373721,113320.0,113310.0,0.84749367]
[1761060563393,0.2373721,113320.0,113310.0,0.01073418]
[1761060563394,0.32719111,113320.0,113310.0,0.01073418]
[1761060564309,0.32719111,113320.0,113310.0,0.00873418]
[1761060565422,0.44359111,113320.0,113310.0,0.00873418]
[1761060565983,0.32719111,113320.0,113310.0,0.00773418]
[1761060566437,0.06088075,113320.0,113310.0,0.31821179]
[1761060566633,0.06088075,113320.0,113310.0,0.12405418]
[1761060566835,0.06088075,113320.0,113310.0,0.3005611]
[1761060567072,0.2373721,113320.0,113310.0,0.3005611]
[1761060568070,0.06088075,113320.0,113310.0,0.3005611]
[1761060568276,0.2373721,113320.0,113310.0,0.3005611]
[1761060568642,0.2373721,113320.0,113310.0,0.12405418]
[1761060568845,0.32719111,113320.0,113310.0,0.12405418]
[1761060569049,0.32719111,113320.0,113310.0,0.3005611]
[1761060569266,0.32719111,113320.0,113310.0,0.3005211]
[1761060569607,0.32719111,113320.0,113310.0,0.12401418]
[1761060570620,0.06088075,113320.0,113310.0,0.84425367]
[1761060570779,0.2373721,113320.0,113310.0,0.84425367]
[1761060570980,0.32719111,113320.0,113310.0,0.00773418]
[1761060571734,0.06088075,113320.0,113310.0,0.55150196]
[1761060571869,0.06088075,113320.0,113310.0,0.72800888]
[1761060572394,0.17652876,113300.0,113280.0,0.8454825]
[1761060572592,0.16216809,113300.0,113280.0,0.30952308]
[1761060572817,0.16216809,113300.0,113280.0,0.84442844]
[1761060572818,0.17653808,113290.0,113280.0,0.84442844]
[1761060572991,0.17653808,113290.0,113280.0,0.0079022]
[1761060573737,0.26635709,113290.0,113280.0,0.0079022]
[1761060574379,0.81008966,113290.0,113280.0,0.0079022]
[1761060574513,4.23990867,113290.0,113280.0,0.0079022]
[1761060574714,4.18627194,113290.0,113280.0,0.0079022]
[1761060575540,0.64253937,113290.0,113280.0,0.0079022]
[1761060575921,0.63306476,113290.0,113280.0,0.0079022]
[1761060576111,0.74930476,113290.0,113280.0,0.0079022]
[1761060576729,0.75030476,113290.0,113280.0,0.0079022]
[1761060576939,1.29403733,113290.0,113280.0,0.0079022]
[1761060577325,4.33021961,113290.0,113280.0,0.0079022]
[1761060577556,4.33021961,113290.0,113280.0,1e-08]
[1761060578000,4.35021959,113290.0,113280.0,1e-08]
[1761060578914,4.34921959,113290.0,113280.0,1e-08]
[1761060579119,3.67924703,113290.0,113280.0,1e-08]
[1761060579318,4.33021961,113290.0,113280.0,1e-08]
[1761060579727,4.3402196,113290.0,113280.0,1e-08]
[1761060580130,4.35121959,113290.0,113280.0,1e-08]
[1761060580667,0.17656925,113270.0,113260.0,0.00201912]
[1761060581005,0.93658713,113270.0,113260.0,0.00216438]
[1761060581218,0.17664723,113220.0,113210.0,0.190931]
[1761060581439,0.15653214,113220.0,113210.0,0.00596792]
[1761060581837,0.17663163,113230.0,113210.0,0.18263075]
[1761060582013,0.26645064,113230.0,113220.0,0.17664723]
[1761060582220,0.00882846,113270.0,113230.0,0.17661339]
[1761060582401,0.27523927,113260.0,113230.0,0.99573737]
[1761060582603,0.17661603,113240.0,113230.0,0.11624]
[1761060582809,0.17661603,113240.0,113230.0,0.29287163]
[1761060583011,0.17660106,113250.0,113230.0,0.29287163]
[1761060583212,0.27523927,113260.0,113230.0,0.29287163]
[1761060583443,0.17661603,113240.0,113230.0,0.29287163]
[1761060584470,0.17661603,113240.0,113230.0,0.11624]
[1761060584922,0.17661603,113240.0,113230.0,0.29387163]
[1761060585355,0.17661603,113240.0,113230.0,0.11724]
[1761060585561,0.17661603,113240.0,113230.0,0.29387163]
[1761060585913,0.17661603,113240.0,113230.0,0.29487163]
[1761060586114,0.176601,113250.0,113230.0,0.29387163]
[1761060586324,0.39151927,113260.0,113240.0,0.1766144]
[1761060586658,0.17664723,113220.0,113210.0,0.00048792]
[1761060587029,0.17664723,113220.0,113210.0,0.00213677]
[1761060587231,0.20328314,113220.0,113210.0,0.00213677]
[1761060587413,0.28735465,113220.0,113210.0,0.00147652]
[1761060588045,0.40371465,113220.0,113210.0,0.00147652]
[1761060588432,0.28735465,113220.0,113210.0,0.00147652]
[1761060588628,0.71717366,113220.0,113210.0,0.00147652]
[1761060588899,1.34874117,113220.0,113210.0,0.00147652]
[1761060589625,1.34874117,113220.0,113210.0,0.01926807]
[1761060589975,1.34974117,113220.0,113210.0,0.01926807]
[1761060590133,4.35874116,113220.0,113210.0,0.01926807]
[1761060590329,4.36874115,113220.0,113210.0,1e-08]
[1761060590562,4.36874115,113220.0,113190.0,0.01595918]
[1761060590563,0.17667844,113200.0,113190.0,0.01595918]
[1761060590894,1.06798169,113200.0,113190.0,0.0238872]
[1761060592563,4.06798169,113200.0,113190.0,0.0238872]
[1761060592832,4.06898169,113200.0,113190.0,0.01610447]
[1761060593050,4.10516397,113200.0,113190.0,0.01610447]
[1761060593515,0.30467973,113200.0,113190.0,0.01610447]
[1761060593742,0.72473745,113200.0,113190.0,0.01610447]
[1761060594975,0.26849745,113200.0,113190.0,0.01610447]
[1761060595181,0.38465745,113200.0,113190.0,0.01610447]
[1761060596277,0.38465745,113200.0,113190.0,0.01676427]
[1761060596898,0.26849745,113200.0,113190.0,0.0244993]
[1761060597971,0.26749745,113200.0,113190.0,0.0244993]
[1761060598295,0.26649745,113200.0,113190.0,0.0244993]
[1761060599729,0.26649745,113200.0,113190.0,0.01676427]
[1761060599730,0.38261745,113200.0,113190.0,0.01676427]
[1761060600364,1.44400397,113200.0,113190.0,0.01676427]
[1761060600777,0.64267973,113200.0,113190.0,0.01676427]
[1761060600980,0.001,113200.0,113190.0,0.87866256]
[1761060601188,0.001,113200.0,113190.0,0.88640114]
[1761060601352,0.001,113200.0,113190.0,0.88440114]
[1761060601571,0.002,113200.0,113190.0,0.88440114]
[1761060601787,0.002,113200.0,113190.0,0.1991969]
[1761060601788,0.001,113200.0,113190.0,0.1991969]
[1761060601980,0.001,113200.0,113190.0,0.88440114]
[1761060602182,0.001,113200.0,113190.0,0.88540114]
[1761060602383,0.001,113200.0,113190.0,1.66042439]
[1761060602585,0.001,113200.0,113190.0,1.65942439]
[1761060602806,0.18747899,113260.0,113230.0,0.17660527]
[1761060603043,0.26641964,113250.0,113230.0,0.29274812]
[1761060603256,0.26641945,113250.0,113240.0,0.17661603]
[1761060603389,0.00201993,113260.0,113250.0,0.17660044]
[1761060603594,0.00201993,113260.0,113250.0,0.97792468]
[1761060603950,0.00250802,113260.0,113250.0,0.29272044]
[1761060604671,0.00250802,113260.0,113250.0,0.97792468]
[1761060605929,0.00250802,113260.0,113250.0,0.29272044]
[1761060606115,0.00250802,113260.0,113250.0,0.11612]
[1761060606346,0.00250802,113260.0,113250.0,0.97892468]
[1761060606676,0.00250802,113260.0,113250.0,0.97992468]
[1761060607057,0.00250802,113260.0,113250.0,0.29472044]
[1761060607222,0.00250802,113260.0,113250.0,0.97992468]
[1761060607433,0.00250802,113260.0,113250.0,1.05992468]
[1761060607653,0.00250802,113260.0,113250.0,0.37472044]
[1761060607881,0.00250802,113260.0,113250.0,1.05892468]
[1761060608341,0.00250802,113260.0,113250.0,1.05992468]
[1761060608564,1e-08,113260.0,113250.0,1.14974369]
[1761060608788,1e-08,113260.0,113250.0,1.48974369]
[1761060609377,1e-08,113260.0,113250.0,1.40874369]
[1761060609596,1e-08,113260.0,113250.0,1.41774368]
[1761060609800,1e-08,113260.0,113250.0,2.10294792]
[1761060610006,1e-08,113260.0,113250.0,1.41874368]
[1761060610432,1e-08,113260.0,113250.0,1.41974368]
[1761060610835,1e-08,113260.0,113250.0,2.15413019]
[1761060611604,1e-08,113260.0,113250.0,2.21923725]
[1761060612012,1e-08,113260.0,113250.0,2.93325198]
[1761060612211,1e-08,113260.0,113250.0,2.93125198]
[1761060612593,1e-08,113260.0,113250.0,2.90744149]
[1761060612803,0.06055139,113320.0,113310.0,0.86171116]
[1761060613019,0.06055139,113320.0,113310.0,0.00014529]
[1761060613225,0.06055139,113320.0,113310.0,0.29273221]
[1761060613790,0.32686175,113320.0,113310.0,0.00014529]
[1761060613990,0.32686175,113320.0,113310.0,0.11622529]
[1761060615208,0.06055139,113320.0,113310.0,0.29273221]
[1761060615832,0.23704274,113320.0,113310.0,0.29273221]
[1761060616255,0.23804274,113320.0,113310.0,0.29273221]
[1761060616463,0.06155139,113320.0,113310.0,0.17665221]
[1761060616669,0.23704274,113320.0,113310.0,0.29269221]
[1761060617098,0.06055139,113320.0,113310.0,0.29269221]
[1761060617931,0.06055139,113320.0,113310.0,0.38251122]
[1761060618052,0.06055139,113320.0,113310.0,1.06771546]
[1761060618494,0.06252799,113320.0,113310.0,0.38251122]
[1761060619004,0.06252799,113320.0,113310.0,0.38351122]
[1761060619231,0.06252799,113320.0,113310.0,0.38251122]
[1761060619421,0.06252799,113320.0,113310.0,1.06871546]
[1761060619644,0.06252799,113320.0,113310.0,1.06971546]
[1761060619849,0.06252799,113320.0,113310.0,1.06871546]
[1761060620181,0.06252799,113320.0,113310.0,1.06971546]
[1761060621079,0.06252799,113320.0,113310.0,1.06871546]
[1761060621280,0.05,113330.0,113320.0,0.17649135]
[1761060621487,0.05,113330.0,113320.0,0.9515146]
[1761060621692,0.05,113330.0,113320.0,1.0675546]
[1761060622345,0.05,113330.0,113320.0,1.4075546]
[1761060622862,0.05,113330.0,113320.0,0.001]
[1761060623100,0.05,113330.0,113320.0,0.29349135]
[1761060623551,0.05,113330.0,113320.0,1.0685146]
[1761060623743,0.05,113330.0,113320.0,0.38431036]
[1761060623948,0.05,113330.0,113320.0,1.0695146]
[1761060624454,0.05,113330.0,113320.0,1.4095146]
[1761060624659,0.05,113330.0,113320.0,0.26831036]
[1761060624874,0.05,113330.0,113320.0,0.17849135]
[1761060625070,0.05,113330.0,113320.0,0.29453135]
[1761060626097,0.05,113330.0,113320.0,1.0695546]
[1761060626301,0.05394932,113370.0,113360.0,0.17642907]
[1761060626513,0.15751705,113380.0,113370.0,0.17526512]
[1761060626715,0.13872504,113380.0,113370.0,0.60508413]
[1761060626938,0.13872504,113380.0,113370.0,1.29794468]
[1761060627357,0.05208,113400.0,113390.0,0.51638239]
[1761060627557,0.05208,113400.0,113390.0,1.40888564]
[1761060627558,0.0525687,113400.0,113390.0,1.40888564]
[1761060627771,0.0525687,113400.0,113390.0,0.95140564]
[1761060627967,0.0525687,113400.0,113390.0,0.95905981]
[1761060629010,0.0525687,113400.0,113390.0,1.29905981]
[1761060629221,0.0525687,113400.0,113390.0,1.30005981]
[1761060629367,0.05071951,113410.0,113400.0,0.17636684]
[1761060629368,0.02328821,113410.0,113400.0,0.17636684]
[1761060629576,0.02328821,113410.0,113400.0,0.95918971]
[1761060630545,0.02328821,113410.0,113400.0,0.96018406]
[1761060631342,0.02328821,113410.0,113400.0,0.27497982]
[1761060631547,0.02328821,113410.0,113400.0,0.96018406]
[1761060631938,0.02328821,113410.0,113400.0,0.95918406]
[1761060632137,0.02328821,113410.0,113400.0,0.96018406]
[1761060632337,0.02328821,113410.0,113400.0,0.96118406]
[1761060632715,0.02624997,113410.0,113400.0,0.96118406]
[1761060633953,0.02624997,113410.0,113400.0,0.87136505]
[1761060634157,0.02624997,113410.0,113400.0,0.96118406]
[1761060634908,0.02624997,113410.0,113400.0,1.30118406]
[1761060635296,0.02624997,113410.0,113400.0,1.9863883]
[1761060635522,1e-08,113410.0,113400.0,1.30118406]
[1761060635972,1e-08,113410.0,113400.0,1.31118405]
[1761060636185,1e-08,113410.0,113400.0,1.31018405]
[1761060636380,1e-08,113410.0,113400.0,1.30918405]
[1761060636589,1e-08,113410.0,113400.0,1.30318406]
[1761060636792,1e-08,113410.0,113400.0,0.61797982]
[1761060636996,1e-08,113410.0,113400.0,1.30118406]
[1761060637202,1e-08,113410.0,113400.0,1.29353538]
[1761060637375,1e-08,113410.0,113400.0,1.30120533]
[1761060637780,1e-08,113410.0,113400.0,1.29920533]
[1761060638498,1e-08,113410.0,113400.0,0.01181524]
[1761060638640,1e-08,113410.0,113400.0,0.20581876]
[1761060638847,1e-08,113410.0,113400.0,0.17305761]
[1761060639626,0.1763513,113410.0,113390.0,0.17638239]
[1761060639870,0.29467129,113410.0,113400.0,0.17636684]
[1761060640193,0.17635129,113410.0,113400.0,0.17636684]
[1761060640403,0.17636684,113400.0,113390.0,0.00014543]
[1761060640724,0.26618585,113400.0,113390.0,0.00014543]
[1761060640934,0.38454585,113400.0,113390.0,0.00014543]
[1761060641140,0.38454585,113400.0,113320.0,0.02652014]
[1761060641141,0.1764331,113360.0,113320.0,0.02652014]
[1761060641344,0.26051013,113360.0,113330.0,0.17647425]
[1761060641566,0.17646055,113340.0,113320.0,0.0004887]
[1761060641775,0.25479402,113340.0,113320.0,0.0004887]
[1761060641989,0.17951257,113360.0,113330.0,0.17647572]
[1761060642194,0.18518565,113400.0,113370.0,0.00882067]
[1761060642397,0.08981901,113390.0,113370.0,0.29541191]
[1761060642600,0.08981901,113390.0,113370.0,0.29541226]
[1761060642770,0.08981901,113390.0,113380.0,0.17639795]
[1761060642988,0.26620488,113390.0,113370.0,0.119]
[1761060643201,0.2662014,113390.0,113380.0,0.17639795]
[1761060643409,0.2662014,113390.0,113370.0,0.29589604]
[1761060643944,0.2662014,113390.0,113380.0,0.17639795]
[1761060644755,0.2662014,113390.0,113370.0,0.83879702]
[1761060645005,0.26620247,113390.0,113370.0,0.29589604]
[1761060645185,0.26620247,113390.0,113380.0,0.17639795]
[1761060645382,0.26620247,113390.0,113380.0,0.29543795]
[1761060645737,0.2662014,113390.0,113380.0,0.29543795]
[1761060645943,0.08981901,113390.0,113380.0,0.29543795]
[1761060646458,0.66022046,113390.0,113370.0,0.0004887]
[1761060646587,0.26620178,113390.0,113370.0,0.29577818]
[1761060647012,0.17639795,113380.0,113370.0,0.1193687]
[1761060647211,0.26621696,113380.0,113370.0,0.29578221]
[1761060647412,0.18521149,113400.0,113380.0,0.17638731]
[1761060647624,0.26620272,113390.0,113380.0,0.17638731]
[1761060647966,0.2662014,113390.0,113380.0,0.17638731]
[1761060648621,0.2662014,113390.0,113370.0,0.83868319]
[1761060648818,0.2662014,113390.0,113370.0,0.29578221]
[1761060649046,0.17639795,113380.0,113370.0,0.29578221]
[1761060649225,0.26621696,113380.0,113370.0,0.1193687]
[1761060649810,0.26621696,113380.0,113370.0,0.0004887]
[1761060651558,0.08981901,113380.0,113370.0,0.17690221]
[1761060651946,0.26621696,113380.0,113370.0,0.17690221]
[1761060652144,0.001,113380.0,113370.0,0.85394162]
[1761060652346,0.05032894,113420.0,113410.0,0.17635129]
[1761060652567,0.05032894,113420.0,113410.0,0.83793227]
[1761060652768,0.05032894,113420.0,113410.0,0.83693227]
[1761060653174,11.60782743,113500.0,113410.0,0.83693227]
[1761060653378,0.17627357,113460.0,113450.0,0.00938348]
[1761060653614,0.26609258,113460.0,113450.0,0.12842348]
[1761060654047,0.26609258,113460.0,113450.0,0.12676355]
[1761060654213,0.26609258,113460.0,113450.0,0.31243614]
[1761060654437,0.08981901,113460.0,113450.0,0.31243614]
[1761060654735,0.08981901,113460.0,113450.0,0.3125817]
[1761060655548,0.26609258,113460.0,113450.0,0.13629259]
[1761060655754,0.26609258,113460.0,113450.0,0.01725259]
[1761060655962,0.26609258,113460.0,113450.0,0.1267496]
[1761060656162,0.08981901,113460.0,113450.0,0.84593969]
[1761060656329,0.08981901,113460.0,113450.0,0.85532317]
[1761060656526,0.08981901,113460.0,113450.0,0.31242219]
[1761060657185,0.26609258,113460.0,113450.0,0.31242219]
[1761060657339,0.26609258,113460.0,113450.0,0.13613308]
[1761060657548,0.3103277,113460.0,113450.0,0.13613308]
[1761060657759,0.3103277,113460.0,113450.0,0.1267496]
[1761060657760,0.80899356,113460.0,113450.0,0.1267496]
[1761060658017,0.26609258,113460.0,113450.0,0.1267496]
[1761060658212,0.80899356,113460.0,113450.0,0.1267496]
[1761060658623,1.18517584,113460.0,113450.0,0.0078696]
[1761060658779,4.39379485,113460.0,113450.0,1e-08]
[1761060658994,4.41405792,113460.0,113450.0,1e-08]
[1761060659217,4.39511003,113460.0,113450.0,1e-08]
[1761060659427,3.87115598,113460.0,113450.0,1e-08]
[1761060659658,1.20543795,113460.0,113450.0,1e-08]
[1761060659866,3.32253697,113460.0,113450.0,1e-08]
[1761060660071,0.17632019,113430.0,113420.0,0.02238348]
[1761060660231,0.2661392,113430.0,113420.0,0.02252918]
[1761060660612,0.2661392,113430.0,113420.0,0.0131457]
[1761060660846,0.18513019,113450.0,113420.0,0.75176589]
[1761060661021,0.08981901,113450.0,113440.0,0.73858909]
[1761060661222,0.17827471,113460.0,113440.0,0.85762909]
[1761060661459,0.26709258,113460.0,113450.0,0.18567259]
[1761060661662,0.08981901,113460.0,113450.0,0.18567259]
[1761060661863,0.26609258,113460.0,113450.0,0.18467259]
[1761060662035,0.08981901,113460.0,113450.0,0.18467259]
[1761060662261,0.26609258,113460.0,113450.0,0.18467259]
[1761060662466,0.26609258,113460.0,113450.0,0.72757357]
[1761060663947,0.26109258,113460.0,113450.0,0.72757357]
[1761060664160,0.02305721,113490.0,113480.0,0.00838348]
[1761060664360,0.02305721,113490.0,113480.0,0.85640695]
[1761060664569,0.08981901,113490.0,113480.0,0.12726348]
[1761060664819,0.1762425,113480.0,113470.0,0.11888]
[1761060665134,0.08981901,113480.0,113470.0,0.71915902]
[1761060665333,0.02257587,113490.0,113480.0,0.00999999]
[1761060665534,0.28496157,113490.0,113480.0,0.11888]
[1761060665992,0.28826253,113490.0,113480.0,0.11888]
[1761060666196,0.00330096,113490.0,113480.0,0.11888]
[1761060666415,0.00230096,113490.0,113480.0,0.13730347]
[1761060666615,0.17852794,113490.0,113480.0,0.68020445]
[1761060666768,0.00230096,113490.0,113480.0,0.85644695]
[1761060667251,0.26834695,113490.0,113480.0,0.12730348]
[1761060667455,0.00230096,113490.0,113480.0,0.85644695]
[1761060667973,0.00330096,113490.0,113480.0,0.85644695]
[1761060668618,0.00230096,113490.0,113480.0,0.85644695]
[1761060668828,0.00230096,113490.0,113480.0,0.85744695]
[1761060669838,0.17852794,113490.0,113480.0,0.13830347]
[1761060670039,0.17852794,113490.0,113480.0,0.84906347]
[1761060670240,0.17852794,113490.0,113480.0,0.85744695]
[1761060670416,0.17852794,113490.0,113480.0,0.68120445]
[1761060670618,0.00230096,113490.0,113480.0,0.94726596]
[1761060670819,0.00230096,113490.0,113480.0,0.95496456]
[1761060671596,1e-08,113490.0,113480.0,1.29396456]
[1761060672002,1e-08,113490.0,113480.0,1.33214684]
[1761060672280,1e-08,113490.0,113480.0,1.31360409]
[1761060672419,1e-08,113490.0,113480.0,1.33014684]
[1761060672810,1e-08,113490.0,113480.0,1.33114684]
[1761060673231,1e-08,113490.0,113480.0,1.28496457]
[1761060673431,1e-08,113490.0,113480.0,1.29496456]
[1761060674054,1e-08,113490.0,113480.0,1.2949642]
[1761060674252,1e-08,113490.0,113480.0,1.2959642]
[1761060674457,1e-08,113490.0,113480.0,1.2949642]
[1761060674881,1e-08,113490.0,113480.0,1.29596265]
[1761060675079,1e-08,113490.0,113480.0,1.28826596]
[1761060675507,1e-08,113490.0,113480.0,1.31132652]
[1761060676280,1e-08,113490.0,113480.0,1.31132769]
[1761060677201,1e-08,113490.0,113480.0,1.31032769]
[1761060677650,1e-08,113490.0,113480.0,0.76842671]
[1761060677837,1e-08,113490.0,113480.0,0.03344521]
[1761060678044,1e-08,113490.0,113480.0,0.68885169]
[1761060678246,0.17622699,113490.0,113480.0,0.68885169]
[1761060678449,0.17622699,113490.0,113480.0,0.14695071]
[1761060678654,0.17622699,113490.0,113480.0,0.68985169]
[1761060678853,0.17622699,113490.0,113480.0,0.02707071]
[1761060679099,0.266046,113490.0,113480.0,0.00868724]
[1761060679465,1e-08,113490.0,113480.0,0.73783071]
[1761060679679,3.92805127,113500.0,113490.0,0.00838348]
[1761060679869,4.04701127,113500.0,113490.0,0.74519867]
[1761060680073,4.04701127,113500.0,113490.0,0.99519867]
[1761060680658,4.04701127,113500.0,113490.0,0.44461045]
[1761060680893,4.04701127,113500.0,113490.0,0.98751143]
[1761060681070,3.75183982,113500.0,113490.0,0.98751143]
[1761060682669,4.13671028,113500.0,113490.0,0.25838348]
[1761060683991,4.13671028,113500.0,113490.0,0.25]
[1761060684743,4.67961126,113500.0,113490.0,0.25]
[1761060684965,4.13671028,113500.0,113490.0,0.25]
[1761060685611,4.13703885,113500.0,113490.0,0.25]
[1761060686828,3.8419874,113500.0,113490.0,0.42622698]
[1761060687004,3.75216839,113500.0,113490.0,0.98751143]
[1761060687967,3.75316839,113500.0,113490.0,0.98751143]
[1761060688288,3.75216839,113500.0,113490.0,0.44461045]
[1761060688539,3.75216839,113500.0,113490.0,0.98751143]
[1761060690356,3.75216839,113500.0,113490.0,0.98851143]
[1761060690559,3.75216839,113500.0,113490.0,1.10148437]
[1761060690714,3.75216839,113500.0,113490.0,0.46976438]
[1761060690912,3.75216839,113500.0,113490.0,1.01266597]
[1761060691357,3.75216839,113500.0,113490.0,1.01166597]
[1761060691688,3.75216839,113500.0,113490.0,1.01066597]
[1761060691883,3.75216839,113500.0,113490.0,1.01166597]
[1761060692489,3.75216839,113500.0,113490.0,1.01168631]
[1761060693058,3.75216839,113500.0,113490.0,1.01268631]
[1761060693273,3.75216839,113500.0,113490.0,0.46978922]
[1761060693446,3.75216839,113500.0,113490.0,1.0126902]
[1761060694105,3.75216839,113500.0,113490.0,1.0076902]
[1761060694756,3.92837984,113500.0,113490.0,0.83146322]
[1761060694935,3.75216839,113500.0,113490.0,0.56025045]
[1761060695142,3.75216839,113500.0,113490.0,0.37563999]
[1761060695143,3.92837984,113500.0,113490.0,0.37563999]
[1761060695348,3.92837984,113500.0,113490.0,0.38402347]
[1761060695669,3.92837984,113500.0,113490.0,0.56025045]
[1761060695876,3.75216839,113500.0,113490.0,0.56025045]
[1761060696059,3.75216839,113500.0,113490.0,1.10315143]
[1761060696255,3.75216839,113500.0,113490.0,1.10215143]
[1761060696811,3.75216839,113500.0,113490.0,1.10115143]
[1761060697225,3.75216839,113500.0,113490.0,1.11662621]
[1761060697450,3.75216839,113500.0,113490.0,1.10115143]
[1761060698342,3.75216839,113500.0,113490.0,1.11762891]
[1761060699060,3.75216839,113500.0,113490.0,0.57472793]
[1761060699222,3.92837984,113500.0,113490.0,0.38302347]
[1761060699685,4.10801786,113500.0,113490.0,0.246]
[1761060700625,4.10801786,113500.0,113490.0,0.245]